[Event "*** Titled Tuesday Blitz"]
[Site "Chess.com"]
[Date "2019.10.01"]
[Round "4"]
[White "Jumbo"]
[Black "Alexander_Moskalenko"]
[Result "1/2-1/2"]
[WhiteElo "2794"]
[BlackElo "2893"]
[TimeControl "180+2"]
[EndTime "14:01:06 PDT"]
[Termination "Game drawn by agreement"]

1. d4 {[%clk 0:03:01.9]} 1... d5 {[%clk 0:02:25.4]} 2. c4 {[%clk 0:03:03.2]}
2... c6 {[%clk 0:02:26]} 3. Nf3 {[%clk 0:03:04.7]} 3... Nf6 {[%clk 0:02:27.5]}
4. Qb3 {[%clk 0:03:06]} 4... g6 {[%clk 0:02:26.2]} 5. Bg5 {[%clk 0:03:03.2]}
5... Bg7 {[%clk 0:02:27.3]} 6. e3 {[%clk 0:03:02.6]} 6... Ne4 {[%clk 0:02:24.5]}
7. Bh4 {[%clk 0:03:02.5]} 7... O-O {[%clk 0:02:24.4]} 8. Nc3 {[%clk 0:03:03.5]}
8... Nxc3 {[%clk 0:02:24.6]} 9. bxc3 {[%clk 0:03:05.4]} 9... b6 {[%clk
0:02:24.8]} 10. Be2 {[%clk 0:02:49.3]} 10... Ba6 {[%clk 0:02:14.6]} 11. O-O
{[%clk 0:02:48.3]} 11... Re8 {[%clk 0:02:13.4]} 12. Rfe1 {[%clk 0:02:39.6]}
12... Bxc4 {[%clk 0:02:05.8]} 13. Bxc4 {[%clk 0:02:41.5]} 13... dxc4 {[%clk
0:02:07.4]} 14. Qxc4 {[%clk 0:02:42.7]} 14... Qd5 {[%clk 0:02:09.1]} 15. Qe2
{[%clk 0:02:39.6]} 15... Nd7 {[%clk 0:02:05.1]} 16. e4 {[%clk 0:02:33.5]} 16...
Qa5 {[%clk 0:01:57.2]} 17. e5 {[%clk 0:02:31.5]} 17... Nf8 {[%clk 0:01:54.5]}
18. c4 {[%clk 0:02:29.1]} 18... Rad8 {[%clk 0:01:51.2]} 19. Rad1 {[%clk
0:02:29]} 19... b5 {[%clk 0:01:49.2]} 20. cxb5 {[%clk 0:02:22.5]} 20... Qxb5
{[%clk 0:01:51.1]} 21. Qxb5 {[%clk 0:02:18.3]} 21... cxb5 {[%clk 0:01:53]} 22.
d5 {[%clk 0:02:19.7]} 22... h6 {[%clk 0:01:52.7]} 23. d6 {[%clk 0:01:58.5]}
23... g5 {[%clk 0:01:21.7]} 24. dxe7 {[%clk 0:01:18.5]} 24... Rxd1 {[%clk
0:01:22.3]} 25. exf8=Q+ {[%clk 0:01:17.4]} 25... Kxf8 {[%clk 0:01:23.4]} 26.
Rxd1 {[%clk 0:01:18.4]} 26... gxh4 {[%clk 0:01:25]} 27. Rd5 {[%clk 0:01:10.3]}
27... Rc8 {[%clk 0:00:53.2]} 28. Kf1 {[%clk 0:01:10.2]} 28... Rc1+ {[%clk
0:00:48.2]} 29. Ke2 {[%clk 0:01:10.9]} 29... Rc2+ {[%clk 0:00:49.7]} 30. Rd2
{[%clk 0:00:40.6]} 30... Rc5 {[%clk 0:00:33]} 31. Rd8+ {[%clk 0:00:25]} 31...
Ke7 {[%clk 0:00:33.6]} 32. Rb8 {[%clk 0:00:18.7]} 32... Bxe5 {[%clk 0:00:21.2]}
33. Rb7+ {[%clk 0:00:17.4]} 33... Kf8 {[%clk 0:00:13.2]} 34. Rxa7 {[%clk
0:00:17.9]} 34... Bf6 {[%clk 0:00:14.5]} 35. Kd3 {[%clk 0:00:17.1]} 35... Rc3+
{[%clk 0:00:14.8]} 36. Kd2 {[%clk 0:00:17]} 36... h3 {[%clk 0:00:15.7]} 37. Ne1
{[%clk 0:00:11.6]} 37... hxg2 {[%clk 0:00:16.8]} 38. Nxg2 {[%clk 0:00:13.5]}
38... Rh3 {[%clk 0:00:18.1]} 39. Ne3 {[%clk 0:00:11.1]} 39... Rxh2 {[%clk
0:00:13.9]} 40. Ng4 {[%clk 0:00:11.5]} 40... Bg5+ {[%clk 0:00:15.1]} 41. Ke2
{[%clk 0:00:12.1]} 41... Rh3 {[%clk 0:00:15.7]} 42. Ne5 {[%clk 0:00:11.6]} 42...
f6 {[%clk 0:00:12.9]} 43. Nd7+ {[%clk 0:00:09.1]} 43... Kf7 {[%clk 0:00:10.9]}
44. Nc5+ {[%clk 0:00:09.9]} 44... Kg6 {[%clk 0:00:12]} 45. Nd3 {[%clk
0:00:10.3]} 45... Rh4 {[%clk 0:00:11.9]} 46. Rb7 {[%clk 0:00:08.7]} 46... Ra4
{[%clk 0:00:12.8]} 47. Rxb5 {[%clk 0:00:10.1]} 47... Rxa2+ {[%clk 0:00:14]} 48.
Kf1 {[%clk 0:00:11.8]} 48... Ra3 {[%clk 0:00:14.1]} 49. Ne1 {[%clk 0:00:12]}
49... Ra1 {[%clk 0:00:14.1]} 50. Ke2 {[%clk 0:00:13.5]} 50... h5 {[%clk
0:00:15.5]} 51. Nf3 {[%clk 0:00:14.2]} 51... h4 {[%clk 0:00:14.6]} 52. Rb8
{[%clk 0:00:15.2]} 52... Kf5 {[%clk 0:00:13.8]} 53. Rh8 {[%clk 0:00:04.6]} 53...
Kg4 {[%clk 0:00:14.5]} 54. Nh2+ {[%clk 0:00:05.9]} 54... Kh3 {[%clk 0:00:14.9]}
55. Nf3 {[%clk 0:00:07.5]} 55... Ra2+ {[%clk 0:00:15.4]} 56. Kf1 {[%clk
0:00:08.5]} 56... Kg4 {[%clk 0:00:15.3]} 57. Nh2+ {[%clk 0:00:09.7]} 57... Kf4
{[%clk 0:00:15.7]} 58. Kg2 {[%clk 0:00:10.6]} 58... Ra3 {[%clk 0:00:16]} 59. Nf1
{[%clk 0:00:10.8]} 59... Kf5 {[%clk 0:00:12.3]} 60. Nh2 {[%clk 0:00:10.8]} 60...
Rb3 {[%clk 0:00:12.8]} 61. Nf3 {[%clk 0:00:11.5]} 61... Kg4 {[%clk 0:00:13.4]}
62. Nh2+ {[%clk 0:00:12.3]} 62... Kf4 {[%clk 0:00:15]} 63. Rh7 {[%clk
0:00:13.6]} 63... Rc3 {[%clk 0:00:14.6]} 64. Nf1 {[%clk 0:00:14.4]} 64... f5
{[%clk 0:00:14.4]} 65. Ne3 {[%clk 0:00:13.8]} 65... Ra3 {[%clk 0:00:13.5]} 66.
Rf7 {[%clk 0:00:13.4]} 66... Ke4 {[%clk 0:00:12.8]} 67. Rg7 {[%clk 0:00:12.7]}
67... Bxe3 {[%clk 0:00:13.5]} 68. Re7+ {[%clk 0:00:13.7]} 68... Kf4 {[%clk
0:00:14.2]} 69. fxe3+ {[%clk 0:00:14.9]} 69... Rxe3 {[%clk 0:00:16.1]} 70. Rh7
{[%clk 0:00:16.4]} 70... Rg3+ {[%clk 0:00:15.4]} 71. Kf2 {[%clk 0:00:17.5]}
71... Rg4 {[%clk 0:00:14.6]} 72. Rh5 {[%clk 0:00:18]} 72... Ke4 {[%clk
0:00:14.2]} 73. Rh8 {[%clk 0:00:18.9]} 73... Kf4 {[%clk 0:00:13.7]} 74. Rh5
{[%clk 0:00:19.2]} 74... Ke5 {[%clk 0:00:13.6]} 75. Rh6 {[%clk 0:00:20.2]} 75...
Ra4 {[%clk 0:00:14.7]} 76. Rh8 {[%clk 0:00:20.9]} 76... Kf6 {[%clk 0:00:14.9]}
77. Kg2 {[%clk 0:00:20.4]} 77... Kg5 {[%clk 0:00:15.4]} 78. Kh2 {[%clk
0:00:19.8]} 78... Ra3 {[%clk 0:00:16.2]} 79. Kg2 {[%clk 0:00:20.5]} 79... Kg4
{[%clk 0:00:15.3]} 80. Rg8+ {[%clk 0:00:20.8]} 80... Kf4 {[%clk 0:00:16.7]} 81.
Rb8 {[%clk 0:00:21.4]} 81... Rg3+ {[%clk 0:00:11.2]} 82. Kh2 {[%clk 0:00:22.1]}
82... Re3 {[%clk 0:00:13.1]} 83. Rh8 {[%clk 0:00:21.5]} 83... Kg4 {[%clk
0:00:14]} 84. Rg8+ {[%clk 0:00:14.7]} 84... Kf3 {[%clk 0:00:13.2]} 85. Ra8
{[%clk 0:00:15]} 85... f4 {[%clk 0:00:07.3]} 86. Ra4 {[%clk 0:00:15.9]} 86...
Re4 {[%clk 0:00:07.6]} 87. Ra1 {[%clk 0:00:13.8]} 87... Re2+ {[%clk 0:00:04.4]}
88. Kh3 {[%clk 0:00:14.7]} 88... Kf2 {[%clk 0:00:05.9]} 89. Kxh4 {[%clk
0:00:14]} 89... f3 {[%clk 0:00:06.6]} 90. Kh3 {[%clk 0:00:07.4]} 90... Re1
{[%clk 0:00:07.9]} 91. Ra2+ {[%clk 0:00:07.9]} 91... Re2 {[%clk 0:00:07.5]} 92.
Ra3 {[%clk 0:00:08.5]} 92... Re3 {[%clk 0:00:07.3]} 93. Ra1 {[%clk 0:00:08.9]}
93... Rc3 {[%clk 0:00:07.1]} 94. Kh2 {[%clk 0:00:06.5]} 94... Rd3 {[%clk
0:00:06.8]} 95. Ra2+ {[%clk 0:00:06.8]} 95... Kf1 {[%clk 0:00:05.9]} 96. Ra1+
{[%clk 0:00:06.4]} 96... Ke2 {[%clk 0:00:06.3]} 97. Kg3 {[%clk 0:00:07.4]} 97...
f2+ {[%clk 0:00:04.4]} 98. Kg2 {[%clk 0:00:06.2]} 98... Rd2 {[%clk 0:00:05.9]}
99. Rb1 {[%clk 0:00:03.8]} 99... Ra2 {[%clk 0:00:06.3]} 100. Rc1 {[%clk
0:00:04.7]} 100... Rb2 {[%clk 0:00:07.7]} 101. Ra1 {[%clk 0:00:05.5]} 101... Rb6
{[%clk 0:00:08.2]} 102. Ra2+ {[%clk 0:00:06.2]} 102... Ke3 {[%clk 0:00:09.7]}
103. Ra3+ {[%clk 0:00:07.3]} 103... Ke2 {[%clk 0:00:08.9]} 104. Ra2+ {[%clk
0:00:08.6]} 104... Kd3 {[%clk 0:00:09.5]} 105. Rxf2 {[%clk 0:00:08.8]} 1/2-1/2

[Event "*** Titled Tuesday Blitz"]
[Site "Chess.com"]
[Date "2019.10.01"]
[Round "5"]
[White "XiaoKangZhong"]
[Black "raviteja81293"]
[Result "0-1"]
[WhiteElo "2419"]
[BlackElo "2605"]
[TimeControl "180+2"]
[EndTime "14:07:28 PDT"]
[Termination "raviteja81293 won by resignation"]

1. e4 {[%clk 0:03:01.9]} 1... c6 {[%clk 0:03:00.8]} 2. c4 {[%clk 0:02:58.6]}
2... d5 {[%clk 0:03:02.7]} 3. cxd5 {[%clk 0:02:52.5]} 3... cxd5 {[%clk
0:03:04.6]} 4. exd5 {[%clk 0:02:54.2]} 4... Nf6 {[%clk 0:03:03]} 5. Bb5+ {[%clk
0:02:53.8]} 5... Nbd7 {[%clk 0:03:02.3]} 6. Nc3 {[%clk 0:02:53.5]} 6... g6
{[%clk 0:03:03.3]} 7. Nf3 {[%clk 0:02:50.9]} 7... Bg7 {[%clk 0:03:04.7]} 8. O-O
{[%clk 0:02:52.4]} 8... O-O {[%clk 0:03:06.2]} 9. d3 {[%clk 0:02:51.2]} 9... Nb6
{[%clk 0:03:07.5]} 10. Bc4 {[%clk 0:02:48.8]} 10... Nxc4 {[%clk 0:03:08.8]} 11.
dxc4 {[%clk 0:02:49.7]} 11... e6 {[%clk 0:03:10.2]} 12. Bg5 {[%clk 0:02:46]}
12... Qc7 {[%clk 0:02:56.6]} 13. Qd3 {[%clk 0:02:41.6]} 13... exd5 {[%clk
0:02:52]} 14. cxd5 {[%clk 0:02:40.9]} 14... Bf5 {[%clk 0:02:53]} 15. Qd2 {[%clk
0:02:39.8]} 15... Ne4 {[%clk 0:02:52.1]} 16. Nxe4 {[%clk 0:02:39.6]} 16... Bxe4
{[%clk 0:02:54]} 17. Rac1 {[%clk 0:02:33.3]} 17... Qd7 {[%clk 0:02:36.6]} 18. d6
{[%clk 0:02:20.6]} 18... Bxf3 {[%clk 0:02:09.5]} 19. gxf3 {[%clk 0:02:21]} 19...
Be5 {[%clk 0:02:02.3]} 20. Be7 {[%clk 0:02:19]} 20... Qh3 {[%clk 0:01:59.1]} 21.
f4 {[%clk 0:02:18.4]} 21... Qg4+ {[%clk 0:02:00.1]} 22. Kh1 {[%clk 0:02:12.9]}
22... Qf3+ {[%clk 0:02:01.3]} 23. Kg1 {[%clk 0:02:12.3]} 23... Bxf4 {[%clk
0:01:58.9]} 24. Qd1 {[%clk 0:02:12.4]} 24... Qh3 {[%clk 0:02:00.3]} 25. Re1
{[%clk 0:02:03.9]} 25... Bxh2+ {[%clk 0:01:58]} 26. Kh1 {[%clk 0:02:05]} 26...
Bg3+ {[%clk 0:01:59.3]} 27. Kg1 {[%clk 0:02:06.5]} 27... Qh2+ {[%clk 0:02:00.7]}
0-1

[Event "*** Titled Tuesday Blitz"]
[Site "Chess.com"]
[Date "2019.10.01"]
[Round "5"]
[White "Slovak_fighter2000"]
[Black "PaulfromSPb"]
[Result "0-1"]
[WhiteElo "2450"]
[BlackElo "2659"]
[TimeControl "180+2"]
[EndTime "14:07:38 PDT"]
[Termination "PaulfromSPb won by resignation"]

1. d4 {[%clk 0:03:01.6]} 1... Nf6 {[%clk 0:02:51.5]} 2. Nf3 {[%clk 0:03:02.2]}
2... e6 {[%clk 0:02:50.4]} 3. c4 {[%clk 0:03:02.6]} 3... b6 {[%clk 0:02:51.4]}
4. g3 {[%clk 0:03:03.4]} 4... Ba6 {[%clk 0:02:52.5]} 5. Bg2 {[%clk 0:03:05]}
5... Bxc4 {[%clk 0:02:49.8]} 6. Nc3 {[%clk 0:03:04.6]} 6... d5 {[%clk
0:02:49.9]} 7. Ne5 {[%clk 0:03:00.8]} 7... Ba6 {[%clk 0:02:44.9]} 8. Qa4+ {[%clk
0:02:57.9]} 8... Nfd7 {[%clk 0:02:45]} 9. e4 {[%clk 0:02:56.2]} 9... b5 {[%clk
0:02:25.2]} 10. Nxb5 {[%clk 0:02:52.2]} 10... c6 {[%clk 0:02:25.3]} 11. Nc3
{[%clk 0:02:48.5]} 11... Nxe5 {[%clk 0:02:25.4]} 12. dxe5 {[%clk 0:02:49.8]}
12... d4 {[%clk 0:02:26.5]} 13. Ne2 {[%clk 0:02:47.1]} 13... Bc5 {[%clk
0:02:20.9]} 14. Bd2 {[%clk 0:02:42.9]} 14... O-O {[%clk 0:02:18.8]} 15. Rc1
{[%clk 0:02:42]} 15... Qb6 {[%clk 0:02:17.5]} 16. b4 {[%clk 0:02:40]} 16... Be7
{[%clk 0:02:17.3]} 17. Bf1 {[%clk 0:02:39.1]} 17... Bb5 {[%clk 0:02:13.4]} 18.
Qb3 {[%clk 0:02:39.5]} 18... Nd7 {[%clk 0:01:55.5]} 19. f4 {[%clk 0:02:33.7]}
19... a5 {[%clk 0:01:35.5]} 20. bxa5 {[%clk 0:02:30.6]} 20... Rxa5 {[%clk
0:01:36]} 21. Bxa5 {[%clk 0:02:30.2]} 21... Qxa5+ {[%clk 0:01:37.9]} 22. Kf2
{[%clk 0:02:31.4]} 22... Nc5 {[%clk 0:01:39]} 23. Rxc5 {[%clk 0:02:27.4]} 23...
Bxc5 {[%clk 0:01:40.9]} 24. Nc1 {[%clk 0:02:26.2]} 24... Qd2+ {[%clk 0:01:38.7]}
25. Be2 {[%clk 0:02:22.6]} 25... d3+ {[%clk 0:01:39.4]} 0-1

[Event "*** Titled Tuesday Blitz"]
[Site "Chess.com"]
[Date "2019.10.01"]
[Round "5"]
[White "fidetrainerNET"]
[Black "sergeikim"]
[Result "0-1"]
[WhiteElo "2250"]
[BlackElo "2480"]
[TimeControl "180+2"]
[EndTime "14:07:50 PDT"]
[Termination "sergeikim won by checkmate"]

1. e4 {[%clk 0:03:01.9]} 1... e5 {[%clk 0:03:00]} 2. f4 {[%clk 0:02:45.9]} 2...
Bc5 {[%clk 0:02:58.4]} 3. Nf3 {[%clk 0:02:46.5]} 3... d6 {[%clk 0:02:59.3]} 4.
c3 {[%clk 0:02:45.9]} 4... Nc6 {[%clk 0:03:00.1]} 5. d4 {[%clk 0:02:46.7]} 5...
exd4 {[%clk 0:03:01.2]} 6. cxd4 {[%clk 0:02:48.6]} 6... Bb6 {[%clk 0:03:02]} 7.
d5 {[%clk 0:02:48.7]} 7... Nce7 {[%clk 0:03:00.4]} 8. Nc3 {[%clk 0:02:49.1]}
8... Nf6 {[%clk 0:03:00.2]} 9. h3 {[%clk 0:02:49.1]} 9... O-O {[%clk 0:02:56.7]}
10. Bc4 {[%clk 0:02:47.1]} 10... c6 {[%clk 0:02:56.3]} 11. dxc6 {[%clk 0:02:49]}
11... bxc6 {[%clk 0:02:56.7]} 12. e5 {[%clk 0:02:46.8]} 12... Nfd5 {[%clk
0:02:52]} 13. Nxd5 {[%clk 0:02:42.3]} 13... cxd5 {[%clk 0:02:46.3]} 14. Bxd5
{[%clk 0:02:44.2]} 14... Nxd5 {[%clk 0:02:46.9]} 15. Qxd5 {[%clk 0:02:46.1]}
15... Be6 {[%clk 0:02:35.1]} 16. Qxd6 {[%clk 0:02:38.5]} 16... Qxd6 {[%clk
0:02:33.6]} 17. exd6 {[%clk 0:02:39.2]} 17... Rfd8 {[%clk 0:02:34.4]} 18. Bd2
{[%clk 0:02:35.6]} 18... Rxd6 {[%clk 0:02:34.4]} 19. O-O-O {[%clk 0:02:31.5]}
19... Bxa2 {[%clk 0:02:30.6]} 20. Bc3 {[%clk 0:02:16.7]} 20... Be3+ {[%clk
0:02:28.5]} 21. Kc2 {[%clk 0:02:17.4]} 21... Bd5 {[%clk 0:02:21.8]} 22. f5
{[%clk 0:01:33.6]} 22... Be4+ {[%clk 0:02:12.6]} 23. Kb3 {[%clk 0:01:34]} 23...
Rb8+ {[%clk 0:02:05.9]} 24. Kc4 {[%clk 0:01:33.5]} 24... Rc6# {[%clk 0:02:03.2]}
0-1

[Event "*** Titled Tuesday Blitz"]
[Site "Chess.com"]
[Date "2019.10.01"]
[Round "5"]
[White "Babas"]
[Black "AminMolaei"]
[Result "0-1"]
[WhiteElo "2468"]
[BlackElo "2684"]
[TimeControl "180+2"]
[EndTime "14:08:07 PDT"]
[Termination "AminMolaei won by resignation"]

1. d4 {[%clk 0:03:01.9]} 1... Nf6 {[%clk 0:02:58.8]} 2. Nf3 {[%clk 0:03:01.8]}
2... e6 {[%clk 0:02:57.7]} 3. c4 {[%clk 0:03:02.5]} 3... d5 {[%clk 0:02:55.5]}
4. cxd5 {[%clk 0:03:03.5]} 4... exd5 {[%clk 0:02:57.4]} 5. Nc3 {[%clk
0:03:04.4]} 5... a6 {[%clk 0:02:56.1]} 6. Bg5 {[%clk 0:03:02.6]} 6... Be6 {[%clk
0:02:56.8]} 7. e3 {[%clk 0:03:03.3]} 7... Nbd7 {[%clk 0:02:56.4]} 8. Bd3 {[%clk
0:03:04]} 8... c6 {[%clk 0:02:57]} 9. O-O {[%clk 0:03:04.8]} 9... Bd6 {[%clk
0:02:58.3]} 10. Rb1 {[%clk 0:03:05.5]} 10... Qc7 {[%clk 0:02:58.9]} 11. b4
{[%clk 0:03:04.9]} 11... h6 {[%clk 0:02:58.9]} 12. Bh4 {[%clk 0:03:05.5]} 12...
Bg4 {[%clk 0:02:59.8]} 13. Bg3 {[%clk 0:03:05.8]} 13... Bxf3 {[%clk 0:02:59.6]}
14. Qxf3 {[%clk 0:03:05]} 14... O-O {[%clk 0:02:57.2]} 15. a4 {[%clk 0:03:05.8]}
15... Bxg3 {[%clk 0:02:57.1]} 16. hxg3 {[%clk 0:03:06.5]} 16... b5 {[%clk
0:02:57.9]} 17. axb5 {[%clk 0:03:00.6]} 17... axb5 {[%clk 0:02:58.6]} 18. Rfc1
{[%clk 0:03:01.8]} 18... Qd6 {[%clk 0:02:59.5]} 19. Ne2 {[%clk 0:02:57.6]} 19...
Nb6 {[%clk 0:02:59.6]} 20. Qf4 {[%clk 0:02:56.9]} 20... Qxf4 {[%clk 0:02:59.6]}
21. Nxf4 {[%clk 0:02:58.8]} 21... Nc4 {[%clk 0:03:01.1]} 22. Bf1 {[%clk
0:02:57.5]} 22... Ra2 {[%clk 0:03:01]} 23. Nd3 {[%clk 0:02:55.2]} 23... Ne4
{[%clk 0:03:00.7]} 24. g4 {[%clk 0:02:40.1]} 24... Rfa8 {[%clk 0:02:56.9]} 25.
Ne5 {[%clk 0:02:36]} 25... Ncd2 {[%clk 0:02:45.5]} 26. f3 {[%clk 0:02:09.8]}
26... Nxb1 {[%clk 0:02:28.5]} 27. fxe4 {[%clk 0:02:10]} 27... Nd2 {[%clk
0:02:29.4]} 28. Rd1 {[%clk 0:01:46.2]} 28... Nxe4 {[%clk 0:02:22.5]} 29. Nxc6
{[%clk 0:01:47.1]} 29... Ra1 {[%clk 0:02:23.1]} 30. Rxa1 {[%clk 0:01:27.3]}
30... Rxa1 {[%clk 0:02:25]} 0-1

[Event "*** Titled Tuesday Blitz"]
[Site "Chess.com"]
[Date "2019.10.01"]
[Round "5"]
[White "Bryakin_Mikhail"]
[Black "Kostya_Nikologorskiy"]
[Result "1-0"]
[WhiteElo "2756"]
[BlackElo "2505"]
[TimeControl "180+2"]
[EndTime "14:08:09 PDT"]
[Termination "Bryakin_Mikhail won by resignation"]

1. d4 {[%clk 0:03:01.9]} 1... Nf6 {[%clk 0:03:00.1]} 2. c4 {[%clk 0:03:01.7]}
2... g6 {[%clk 0:03:01.5]} 3. Nc3 {[%clk 0:03:03]} 3... Bg7 {[%clk 0:03:02.4]}
4. e4 {[%clk 0:03:03.9]} 4... d6 {[%clk 0:03:03.8]} 5. h3 {[%clk 0:03:05.1]}
5... O-O {[%clk 0:03:01.2]} 6. Be3 {[%clk 0:03:06.7]} 6... e5 {[%clk 0:02:58.5]}
7. d5 {[%clk 0:03:07.6]} 7... Na6 {[%clk 0:02:52.3]} 8. Nf3 {[%clk 0:03:02]}
8... Nc5 {[%clk 0:02:51]} 9. Nd2 {[%clk 0:03:02.3]} 9... a5 {[%clk 0:02:51.6]}
10. g4 {[%clk 0:03:03.4]} 10... Bd7 {[%clk 0:02:47.8]} 11. b3 {[%clk 0:02:55.8]}
11... c6 {[%clk 0:02:44.8]} 12. a3 {[%clk 0:02:54.9]} 12... cxd5 {[%clk
0:02:42.6]} 13. cxd5 {[%clk 0:02:56.3]} 13... Rc8 {[%clk 0:02:07.6]} 14. b4
{[%clk 0:02:51.4]} 14... axb4 {[%clk 0:01:58.9]} 15. axb4 {[%clk 0:02:53.3]}
15... Na6 {[%clk 0:02:00.4]} 16. Qb3 {[%clk 0:02:53.1]} 16... Qc7 {[%clk
0:01:52.1]} 17. Nb5 {[%clk 0:02:53.9]} 17... Bxb5 {[%clk 0:01:48.2]} 18. Bxb5
{[%clk 0:02:55.8]} 18... Qc3 {[%clk 0:01:40]} 19. Qxc3 {[%clk 0:02:56.2]} 19...
Rxc3 {[%clk 0:01:41.5]} 20. Bxa6 {[%clk 0:02:56.1]} 20... bxa6 {[%clk
0:01:42.8]} 21. Ke2 {[%clk 0:02:54]} 21... Ne8 {[%clk 0:01:30.9]} 22. Rxa6
{[%clk 0:02:53.5]} 22... f5 {[%clk 0:01:32.4]} 23. gxf5 {[%clk 0:02:53.4]} 23...
gxf5 {[%clk 0:01:34.3]} 24. exf5 {[%clk 0:02:54.1]} 24... Rxf5 {[%clk
0:01:29.8]} 25. Rb1 {[%clk 0:02:54.2]} 25... Rf7 {[%clk 0:01:21.8]} 26. Ne4
{[%clk 0:02:51.6]} 26... Rc2+ {[%clk 0:01:14.2]} 27. Kd3 {[%clk 0:02:52.8]}
27... Rfc7 {[%clk 0:01:14.6]} 28. b5 {[%clk 0:02:49]} 1-0

[Event "*** Titled Tuesday Blitz"]
[Site "Chess.com"]
[Date "2019.10.01"]
[Round "5"]
[White "akretchetov"]
[Black "M1711"]
[Result "0-1"]
[WhiteElo "2373"]
[BlackElo "2543"]
[TimeControl "180+2"]
[EndTime "14:08:14 PDT"]
[Termination "M1711 won by resignation"]

1. d4 {[%clk 0:03:01.9]} 1... Nf6 {[%clk 0:02:58.4]} 2. Bf4 {[%clk 0:03:01.8]}
2... d5 {[%clk 0:02:58.6]} 3. e3 {[%clk 0:03:01]} 3... c5 {[%clk 0:03:00.3]} 4.
c3 {[%clk 0:03:01.7]} 4... Nc6 {[%clk 0:03:02.2]} 5. Nd2 {[%clk 0:03:00]} 5...
e6 {[%clk 0:03:03.9]} 6. Ngf3 {[%clk 0:03:00.6]} 6... cxd4 {[%clk 0:03:05.3]} 7.
exd4 {[%clk 0:03:00.4]} 7... Nh5 {[%clk 0:03:06.7]} 8. Be3 {[%clk 0:03:01.1]}
8... Bd6 {[%clk 0:03:07.7]} 9. g3 {[%clk 0:03:02.2]} 9... O-O {[%clk 0:03:01.5]}
10. Ne5 {[%clk 0:02:54.7]} 10... g6 {[%clk 0:03:00.1]} 11. f4 {[%clk 0:02:51.9]}
11... f6 {[%clk 0:02:59.8]} 12. Nxc6 {[%clk 0:02:43.4]} 12... bxc6 {[%clk
0:03:01.7]} 13. Be2 {[%clk 0:02:42.1]} 13... Ng7 {[%clk 0:03:01.9]} 14. Nf3
{[%clk 0:02:38.9]} 14... Rb8 {[%clk 0:03:01.7]} 15. Qd3 {[%clk 0:02:38.8]} 15...
Rxb2 {[%clk 0:02:59.3]} 16. O-O {[%clk 0:02:35.5]} 16... Bd7 {[%clk 0:02:52.1]}
17. Bf2 {[%clk 0:02:28]} 17... Qa5 {[%clk 0:02:35]} 18. Bd1 {[%clk 0:02:26.5]}
18... Rxa2 {[%clk 0:02:28.4]} 19. Rxa2 {[%clk 0:02:20.4]} 19... Qxa2 {[%clk
0:02:30.3]} 20. Bc2 {[%clk 0:02:21.1]} 20... Rb8 {[%clk 0:02:29]} 21. Rb1 {[%clk
0:02:18]} 21... Rxb1+ {[%clk 0:02:22.2]} 22. Bxb1 {[%clk 0:02:19]} 22... Qb2
{[%clk 0:02:23.7]} 23. h4 {[%clk 0:02:17.6]} 23... a5 {[%clk 0:02:22.4]} 24. Bc2
{[%clk 0:02:05.9]} 24... Qb5 {[%clk 0:01:52.6]} 25. Qd1 {[%clk 0:02:03.9]} 25...
c5 {[%clk 0:01:37.8]} 26. dxc5 {[%clk 0:02:02.1]} 26... Bxc5 {[%clk 0:01:39.7]}
27. Nd4 {[%clk 0:02:01.8]} 27... Qc4 {[%clk 0:01:27.3]} 0-1

[Event "*** Titled Tuesday Blitz"]
[Site "Chess.com"]
[Date "2019.10.01"]
[Round "5"]
[White "Duhless"]
[Black "platy3"]
[Result "1-0"]
[WhiteElo "3019"]
[BlackElo "2843"]
[TimeControl "180+2"]
[EndTime "14:08:22 PDT"]
[Termination "Duhless won by resignation"]

1. d4 {[%clk 0:03:01.9]} 1... Nf6 {[%clk 0:03:00.6]} 2. Nf3 {[%clk 0:03:01.2]}
2... d5 {[%clk 0:03:01]} 3. c4 {[%clk 0:03:01.9]} 3... e6 {[%clk 0:03:02.1]} 4.
Bg5 {[%clk 0:03:02.1]} 4... dxc4 {[%clk 0:02:59.9]} 5. e4 {[%clk 0:03:02.6]}
5... h6 {[%clk 0:02:52.4]} 6. Bxf6 {[%clk 0:03:01.1]} 6... Qxf6 {[%clk
0:02:54.3]} 7. Bxc4 {[%clk 0:03:02]} 7... c5 {[%clk 0:02:50.2]} 8. e5 {[%clk
0:02:59.1]} 8... Qd8 {[%clk 0:02:48]} 9. d5 {[%clk 0:02:59.4]} 9... exd5 {[%clk
0:02:44]} 10. Bxd5 {[%clk 0:03:01.3]} 10... Nc6 {[%clk 0:02:37.7]} 11. Qb3
{[%clk 0:02:56.1]} 11... Qe7 {[%clk 0:02:24.7]} 12. O-O {[%clk 0:02:52.2]} 12...
g6 {[%clk 0:02:25.5]} 13. e6 {[%clk 0:02:37.9]} 13... f5 {[%clk 0:02:13.9]} 14.
Qa4 {[%clk 0:02:19.1]} 14... Qc7 {[%clk 0:02:03]} 15. Ne5 {[%clk 0:02:08.6]}
15... Qxe5 {[%clk 0:01:41.2]} 16. Bxc6+ {[%clk 0:02:08.7]} 16... Ke7 {[%clk
0:01:42.4]} 17. Bxb7 {[%clk 0:02:09.7]} 17... Bxe6 {[%clk 0:01:01.3]} 18. Bxa8
{[%clk 0:02:04.4]} 18... Qxb2 {[%clk 0:01:02.1]} 19. Na3 {[%clk 0:01:58.9]}
19... Bg7 {[%clk 0:01:01.3]} 20. Rae1 {[%clk 0:01:52.3]} 20... Rxa8 {[%clk
0:00:54.3]} 21. Qc6 {[%clk 0:01:51.5]} 1-0

[Event "*** Titled Tuesday Blitz"]
[Site "Chess.com"]
[Date "2019.10.01"]
[Round "5"]
[White "r31415"]
[Black "babero_gordo"]
[Result "1-0"]
[WhiteElo "2399"]
[BlackElo "2108"]
[TimeControl "180+2"]
[EndTime "14:08:47 PDT"]
[Termination "r31415 won by resignation"]

1. e4 {[%clk 0:03:01.9]} 1... c5 {[%clk 0:03:00.7]} 2. Nf3 {[%clk 0:03:03.1]}
2... Nc6 {[%clk 0:03:01.5]} 3. d4 {[%clk 0:03:04.5]} 3... cxd4 {[%clk
0:03:03.4]} 4. Nxd4 {[%clk 0:03:06]} 4... g6 {[%clk 0:03:04.6]} 5. Nc3 {[%clk
0:03:06.3]} 5... Bg7 {[%clk 0:03:05.7]} 6. Be3 {[%clk 0:03:06.7]} 6... Nf6
{[%clk 0:03:06.8]} 7. h3 {[%clk 0:03:08]} 7... O-O {[%clk 0:02:54.8]} 8. Nde2
{[%clk 0:03:08.5]} 8... Qa5 {[%clk 0:02:43.4]} 9. Qd2 {[%clk 0:03:07.2]} 9... e6
{[%clk 0:02:29.6]} 10. f4 {[%clk 0:02:40.8]} 10... d5 {[%clk 0:01:49.4]} 11. e5
{[%clk 0:02:39.2]} 11... Ne4 {[%clk 0:01:50.3]} 12. Nxe4 {[%clk 0:02:38.4]}
12... dxe4 {[%clk 0:01:52.2]} 13. Qxa5 {[%clk 0:02:31.7]} 13... Nxa5 {[%clk
0:01:54.1]} 14. Nc3 {[%clk 0:02:33.2]} 14... f5 {[%clk 0:01:46]} 15. exf6 {[%clk
0:02:33.1]} 15... Bxf6 {[%clk 0:01:46.9]} 16. Bd2 {[%clk 0:02:22.2]} 16... b6
{[%clk 0:01:13.2]} 17. O-O-O {[%clk 0:02:01.6]} 17... Bb7 {[%clk 0:01:09.1]} 18.
b4 {[%clk 0:02:02.8]} 18... Nc6 {[%clk 0:01:05.6]} 19. Nxe4 {[%clk 0:02:03.2]}
19... Be7 {[%clk 0:00:51.5]} 20. Bc4 {[%clk 0:02:03.2]} 20... Nxb4 {[%clk
0:00:38.5]} 21. Bxe6+ {[%clk 0:02:02.7]} 21... Kg7 {[%clk 0:00:39.3]} 22. Bxb4
{[%clk 0:01:55.8]} 22... Bxb4 {[%clk 0:00:41.2]} 23. Rd7+ {[%clk 0:01:56.3]} 1-0